Cogmind - Beta 13 @@@ ROGUE MODE // 2024.03.17 @ 13:43:25 Player: Ape Result: Destroyed by H-66 Slayer with Gauss Rifle Performance ------------- Evolutions (4) 2000 Regions Visited (11) 2200 Robots Destroyed (72) 360 Value Destroyed (2434) 2434 Prototype IDs (41) 820 Alien Tech Used (0) 0 Bonus (890) 890 TOTAL SCORE: 8704 Bonus ------- Follower Combat Kills 290 Aligned with FarCom 300 Met Data Miner 300 Cogmind --------- Core Integrity 0/850 Matter 290/300 Energy 92/100 System Corruption 1% Temperature Cool (0) Movement Core (50) Location -5/Proximity Caves Parts ------- > --- POWER (1) -------- (None) > --- PROPULSION (4) --- (None) > --- UTILITY (8) ------ (None) > --- WEAPON (2) ------- Chainsword > --- INVENTORY (5) ---- Improved Deuterium Engine Micro Nuclear Core Phase Cannon Advanced Assault Cannon Rocket Array Peak State ------------ > --- POWER ------------ Fission Core > --- PROPULSION ------- Medium Treads Medium Treads Carbon-fiber Leg Flexi-carbon Leg > --- UTILITY ---------- Improved Heat Sink Improved Heat Sink High-capacity Storage Unit Improved Targeting Computer Improved Medium Armor Plating Improved Medium Armor Plating Trap Reconfigurator Drone Bay > --- WEAPON ----------- Mini Assault Cannon Mini Assault Cannon > --- INVENTORY -------- Improved Deuterium Engine Micro Nuclear Core Light Fission Core Large Storage Unit Large Storage Unit High-capacity Storage Unit High-capacity Matter Pod Advanced Signal Interpreter Improved Medium Laser Heavy Laser Heavy Ion Cannon Heavy Ion Cannon Heavy Ion Cannon Heavy Ion Cannon Phase Cannon Phase Cannon Gauss Rifle Advanced Assault Cannon Rocket Array Chainsword [Rating: 69] Favorites ----------- Power Improved Ion Engine Engine Improved Ion Engine Power Core Fission Core Propulsion Aluminum Leg Treads Light Treads Leg Aluminum Leg Wheel Compact Wheel Utility High-capacity Storage Unit Device Improved Heat Sink Storage High-capacity Storage Unit Processor Improved Targeting Computer Protection Improved Medium Armor Plating Weapon Mini Assault Cannon Energy Gun Improved Medium Laser Energy Cannon Heavy Ion Cannon Ballistic Gun Shotgun Ballistic Cannon Mini Assault Cannon Launcher Rocket Array Slashing Weapon Chainsword Build | -11 -10 -9 -9 -9 -8 -8 -7 -6 -6 -6 -5 ------- Run | Yrd Mat Mat Min Exi Min Mat Fac Fac Low Dat Pro Slots Evolved 8 | . . 2 . . . 2 2 2 . . . Power . | . . . . . . . . . . . . Propulsion 2 | . . 1 . . . 1 . . . . . Utility 6 | . . 1 . . . 1 2 2 . . . Weapon . | . . . . . . . . . . . . Parts Attached 93 | 6 7 10 . 1 2 10 24 13 19 . 1 Power 11 | 1 . 2 . . . 2 3 1 2 . . Engine 7 | 1 . 2 . . . 1 2 . 1 . . Core 4 | . . . . . . 1 1 1 1 . . Reactor . | . . . . . . . . . . . . Propulsion 23 | 2 1 3 . . 2 5 3 3 4 . . Treads 7 | 2 1 1 . . . . . 2 1 . . Leg 12 | . . 2 . . . 3 3 1 3 . . Wheel 4 | . . . . . 2 2 . . . . . Hover . | . . . . . . . . . . . . Flight . | . . . . . . . . . . . . Utility 35 | 1 3 3 . 1 . 2 10 6 9 . . Device 16 | . 1 1 . 1 . 1 4 3 5 . . Storage 4 | 1 2 . . . . . . . 1 . . Processor 1 | . . . . . . . 1 . . . . Hackware . | . . . . . . . . . . . . Protection 14 | . . 2 . . . 1 5 3 3 . . Artifact . | . . . . . . . . . . . . Weapon 24 | 2 3 2 . . . 1 8 3 4 . 1 Energy Gun 4 | . . . . . . 1 3 . . . . Energy Cannon 2 | . . . . . . . . . 2 . . Ballistic Gun 7 | 2 3 1 . . . . 1 . . . . Ballistic Cannon 9 | . . 1 . . . . 4 3 1 . . Launcher 1 | . . . . . . . . . 1 . . Special Weapon . | . . . . . . . . . . . . Impact Weapon . | . . . . . . . . . . . . Slashing Weapon 1 | . . . . . . . . . . . 1 Piercing Weapon . | . . . . . . . . . . . . Special Melee Weapon . | . . . . . . . . . . . . Unidentified Prototypes . | . . . . . . . . . . . . Parts Lost 35 | . . 3 . . 2 6 1 3 17 . 3 Power 6 | . . 1 . . . 2 . . 2 . 1 Propulsion 15 | . . 2 . . 2 3 1 2 4 . 1 Utility 11 | . . . . . . . . 1 10 . . Weapon 3 | . . . . . . 1 . . 1 . 1 Highest Loss Streak 9 | . . 3 . . 2 6 1 2 9 . 3 To Critical Strikes . | . . . . . . . . . . . . Average Slot Usage (%) 93 | . 99 98 100 100 100 91 99 98 75 60 57 Engine 6 | . 14 10 11 11 11 8 2 . 1 6 5 Core 2 | . . . . . . . 4 6 4 . . Treads 9 | . 28 16 11 11 . . . 10 8 . . Leg 13 | . . 16 22 22 11 17 18 12 5 13 12 Wheel 3 | . . . . . 21 11 11 . . . . Device 15 | . 13 11 11 11 11 18 22 23 9 13 12 Storage 9 | . 14 11 11 11 11 9 7 6 7 13 12 Processor 1 | . . . . . . . 2 6 4 . . Protection 10 | . . 11 11 11 11 9 11 14 18 . . Energy Gun 1 | . . . . . . 4 6 2 . . . Ballistic Gun 8 | . 27 14 11 11 11 4 5 2 . . . Ballistic Cannon 6 | . . 7 11 11 11 9 1 7 10 6 5 Naked Turns 1 | . . . . . . . . . . . 1 Heaviest Build 103 | 12 48 60 60 60 60 64 70 101 103 73 73 Greatest Support 60 | 40 40 60 20 20 20 35 32 56 56 30 30 Greatest Overweight (x) 6 | 2 1 2 2 2 2 6 4 4 4 2 2 Average Overweight (x) 1 | . . 1 2 2 2 2 2 1 1 2 1 Largest Inventory Capacity 20 | 8 20 20 20 20 20 20 20 20 20 20 20 Average Capacity 19 | 6 16 20 20 20 20 20 20 20 20 20 19 Most Carried 20 | 6 20 20 20 20 20 20 20 20 20 15 15 Average Carried 18 | 3 13 19 20 20 19 18 19 19 18 15 14 Final Capacity 20 | 8 20 20 20 20 20 20 20 20 20 20 5 Final Carried 20 | 6 20 20 20 20 20 20 20 20 15 15 5 Class Distribution -------------------- 68% | Mutant 31% | Scavenger-Mutant Dominant Class ---------------- Mutant | -10/Materials Mutant | -9/Materials Mutant | -9/Mines Mutant | -9/Exiles Mutant | -8/Mines Mutant | -8/Materials Scavenger-Mutant | -7/Factory Mutant | -6/Factory Mutant | -6/Lower Caves Scavenger-Mutant | -6/Data Miner Scavenger-Mutant | -5/Proximity Caves Resources | -11 -10 -9 -9 -9 -8 -8 -7 -6 -6 -6 -5 ----------- Run | Yrd Mat Mat Min Exi Min Mat Fac Fac Low Dat Pro Matter Collected 2586 | 235 95 429 90 . 106 205 318 462 646 . . Remotely . | . . . . . . . . . . . . Salvage Created 2237 | . 184 382 57 . 51 252 205 439 667 . . Parts 109 | . 19 23 12 . 5 7 15 13 15 . . Haulers Intercepted . | . . . . . . . . . . . . Recyclers Shooed 1 | . . . . . . . . 1 . . . Parts Field Recycled . | . . . . . . . . . . . . Retrieved Matter . | . . . . . . . . . . . . Parts Self-Destructed 19 | . . . . . . . . . 11 . 8 Prevented . | . . . . . . . . . . . . Kills | -11 -10 -9 -9 -9 -8 -8 -7 -6 -6 -6 -5 ------- Run | Yrd Mat Mat Min Exi Min Mat Fac Fac Low Dat Pro Combat Hostiles Destroyed 65 | . 8 11 7 . 1 5 4 9 20 . . Guns 29 | . 8 6 5 . 1 4 4 1 . . . Cannons 27 | . . 5 2 . . 1 . 8 11 . . AOE 9 | . . . . . . . . . 9 . . Classes Destroyed 11 | . 2 3 . . . . 3 2 1 . . Worker 1 | . . . . . . . . 1 . . . Builder 2 | . . . . . . . . 2 . . . Recycler 3 | . . 1 . . . 1 . 1 . . . Operator 1 | . . . . . . . 1 . . . . Swarmer 23 | . 5 4 7 . . . . 3 4 . . Grunt 27 | . 3 4 . . 1 4 2 4 9 . . Brawler 2 | . . . . . . . . . 2 . . Duelist 4 | . . 1 . . . . . . 3 . . Sentry 6 | . . 2 . . . 1 . 1 2 . . Hunter 2 | . . . . . . . 1 1 . . . Programmer 1 | . . . . . . . 1 . . . . Best Kill Streak 11 | . 2 4 4 . 1 3 2 7 11 . . Combat Bots Only 11 | . 2 4 4 . 1 3 2 4 11 . . Max Kills in Single Turn 3 | . 1 1 2 . 1 1 1 1 3 . . Gunslinging . | . . . . . . . . . . . . Exploded 3 | . . . . . . . . . 3 . . Melee . | . . . . . . . . . . . . Uniques/NPCs Destroyed . | . . . . . . . . . . . . Combat | -11 -10 -9 -9 -9 -8 -8 -7 -6 -6 -6 -5 -------- Run | Yrd Mat Mat Min Exi Min Mat Fac Fac Low Dat Pro Hostile Shots Fired 552 | . 39 69 9 . 8 49 16 117 201 . 44 Missed 162 | . 8 11 4 . 4 17 4 38 62 . 14 Damage Taken 6244 | . 289 714 42 . 63 546 182 877 3036 . 495 Core 1083 | . 54 109 . . . 52 . 22 600 . 246 Absorbed by Shields . | . . . . . . . . . . . . Redirected to Shielding 6 | . . 6 . . . . . . . . . Ignored by Resistances 130 | . . . . . . . . 110 20 . . Core Remaining (%) 88 | 100 78 . . . 72 90 100 . . . . Volleys Fired 234 | . 25 43 6 . 3 27 14 41 69 . 6 Largest 2 | . 2 2 2 . 2 2 2 2 2 . 2 Hottest 113 | . 40 62 62 . 62 95 84 96 113 . 113 Shots Fired 408 | . 50 86 12 . 6 47 26 81 88 . 12 Gun 180 | . 50 69 6 . 3 20 26 6 . . . Cannon 222 | . . 17 6 . 3 27 . 75 82 . 12 Launcher 6 | . . . . . . . . . 6 . . Special . | . . . . . . . . . . . . Kinetic 355 | . 50 86 12 . 6 41 14 78 62 . 6 Thermal 47 | . . . . . . 6 12 3 20 . 6 Explosive 6 | . . . . . . . . . 6 . . Electromagnetic . | . . . . . . . . . . . . Robot Hit Streak 16 | . 6 8 7 . 4 6 5 16 11 . . Robot Miss Streak 12 | . 3 5 1 . 1 6 3 4 2 . 12 Penetration Max . | . . . . . . . . . . . . Secondary Targets 3 | . 1 1 . . . . . 1 . . . Max Gunslinging Chain 1 | . 1 1 . . . . . 1 . . . Shots Hit Robots 264 | . 32 56 9 . 4 33 16 50 64 . . Core Hits 145 | . 15 23 7 . 1 15 8 21 55 . . Critical Kills 1 | . . . . . . . 1 . . . . Critical Parts Destroyed 1 | . . 1 . . . . . . . . . Critical Strikes 16 | . . 1 . . . 4 1 5 5 . . Burn 2 | . . . . . . 2 . . . . . Destroy 2 | . . 1 . . . . 1 . . . . Blast 12 | . . . . . . 2 . 5 5 . . Melee Attacks . | . . . . . . . . . . . . Impact . | . . . . . . . . . . . . Slashing . | . . . . . . . . . . . . Piercing . | . . . . . . . . . . . . Sneak Attacks . | . . . . . . . . . . . . Combat Hostiles . | . . . . . . . . . . . . Follow-up Attacks . | . . . . . . . . . . . . Damage Inflicted 6058 | . 263 655 183 . 63 680 308 1333 2573 . . Guns 1488 | . 263 427 97 . 39 325 303 34 . . . Cannons 3576 | . . 228 86 . 24 355 . 1265 1618 . . Explosions 955 | . . . . . . . . . 955 . . Melee . | . . . . . . . . . . . . Ramming 39 | . . . . . . . 5 34 . . . Kinetic 4368 | . 263 655 183 . 63 581 174 1265 1184 . . Thermal 696 | . . . . . . 99 129 34 434 . . Explosive 955 | . . . . . . . . . 955 . . Electromagnetic . | . . . . . . . . . . . . Impact . | . . . . . . . . . . . . Slashing . | . . . . . . . . . . . . Piercing . | . . . . . . . . . . . . Highest Corruption 1 | . . . . . . . . 1 1 1 1 Average Corruption 1 | . . . . . . . . 1 1 1 1 Corruption Purged . | . . . . . . . . . . . . Corruption Blocked . | . . . . . . . . . . . . Effects 22 | . . . . . . . . 10 7 2 3 Message Errors 4 | . . . . . . . . 2 1 . 1 Matter Fused 6 | . . . . . . . . 3 2 . 1 Heat Flow Errors 6 | . . . . . . . . 1 2 2 1 Energy Discharges 1 | . . . . . . . . 1 . . . Parts Rejected 1 | . . . . . . . . . 1 . . Parts Fused 1 | . . . . . . . . 1 . . . Data Loss (minor) 2 | . . . . . . . . 1 1 . . Weapon Failures 1 | . . . . . . . . 1 . . . Overload Shots . | . . . . . . . . . . . . Overflow Damage 66 | . . . . . . . . 37 29 . . Projectiles 49 | . . . . . . . . 37 12 . . Explosions 17 | . . . . . . . . . 17 . . Melee . | . . . . . . . . . . . . Knockbacks 25 | . . 2 2 . . 4 . 7 10 . . Impact . | . . . . . . . . . . . . Kinetic 24 | . . 2 1 . . 4 . 7 10 . . Secondary 1 | . . . 1 . . . . . . . . Self-Inflicted Damage 174 | . . . . . . . 2 . 172 . . Shots 7 | . . . . . . . . . 7 . . Rammed 5 | . . . . . . . 1 4 . . . Targets Rammed 5 | . . . . . . . 1 4 . . . Kicked . | . . . . . . . . . . . . Crushed . | . . . . . . . . . . . . Highest Temperature 564 | . . 5 . . 45 21 3 249 564 210 126 Average Temperature 112 | . . 4 . . 22 11 3 63 149 97 93 Received Heat Transfer 1710 | . 60 213 . . 36 288 45 132 882 . 54 Effects 7 | . . . . . . . . . 7 . . Shutdowns 1 | . . . . . . . . . 1 . . Energy Bleed 1 | . . . . . . . . . 1 . . Interference 2 | . . . . . . . . . 2 . . Short Circuit 1 | . . . . . . . . . 1 . . Damage (minor) 2 | . . . . . . . . . 2 . . Siege Activations . | . . . . . . . . . . . . Robots Corrupted . | . . . . . . . . . . . . Combat Hostiles . | . . . . . . . . . . . . Parts Fried . | . . . . . . . . . . . . Impact Corruptions . | . . . . . . . . . . . . Robots Melted . | . . . . . . . . . . . . Combat Hostiles . | . . . . . . . . . . . . Parts Melted 2 | . . . . . . . 2 . . . . Heat Transferred 1295 | . . . . . . 370 259 74 592 . . Parts Sabotaged . | . . . . . . . . . . . . Parts Stolen . | . . . . . . . . . . . . Parts Stripped . | . . . . . . . . . . . . Power Chain Reactions . | . . . . . . . . . . . . Alert | -11 -10 -9 -9 -9 -8 -8 -7 -6 -6 -6 -5 ------- Run | Yrd Mat Mat Min Exi Min Mat Fac Fac Low Dat Pro Peak Influence 263 | . 197 263 213 . 78 236 261 202 . . . Initial 98 | . . . 57 . . 29 2 98 . . . Average 87 | . 61 145 86 . 75 114 91 76 . . . Maximum Alert Level 1 | . . 1 1 . . 1 1 1 . . . Low Security (%) 90 | 100 100 66 79 . 100 94 89 99 . . . Level 1 9 | . . 33 20 . . 5 10 . . . . Level 2 . | . . . . . . . . . . . . Level 3 . | . . . . . . . . . . . . Level 4 . | . . . . . . . . . . . . Level 5 . | . . . . . . . . . . . . High Security . | . . . . . . . . . . . . Max Security . | . . . . . . . . . . . . Squads Dispatched 16 | . 2 3 . . . 1 4 6 . . . Investigation 6 | . 2 1 . . . 1 2 . . . . Extermination 3 | . . . . . . . 1 2 . . . Reinforcement 7 | . . 2 . . . . 1 4 . . . Assault . | . . . . . . . . . . . . Garrison . | . . . . . . . . . . . . Intercept . | . . . . . . . . . . . . Searches Triggered . | . . . . . . . . . . . . Construction Impeded . | . . . . . . . . . . . . Haulers Reinforced 3 | . . . . . . . . 3 . . . Active Scanning Responses . | . . . . . . . . . . . . Cargo Convoy Interrupts . | . . . . . . . . . . . . Stealth | -11 -10 -9 -9 -9 -8 -8 -7 -6 -6 -6 -5 --------- Run | Yrd Mat Mat Min Exi Min Mat Fac Fac Low Dat Pro Distress Signals 6 | . . 1 . . . 2 . 1 . . 2 Communications Jammed . | . . . . . . . . . . . . Distress Signals . | . . . . . . . . . . . . Times Spotted 125 | . 20 17 7 . 3 9 10 24 23 . 12 Peak Tracking Total 10 | . 4 6 4 . 3 4 3 4 10 . 8 Tactical Retreats . | . . . . . . . . . . . . Traps | -11 -10 -9 -9 -9 -8 -8 -7 -6 -6 -6 -5 ------- Run | Yrd Mat Mat Min Exi Min Mat Fac Fac Low Dat Pro Traps Triggered 7 | . 1 . . . . . 6 . . . . Indirectly . | . . . . . . . . . . . . Trap Hack Attempts . | . . . . . . . . . . . . Triggered . | . . . . . . . . . . . . Disarmed . | . . . . . . . . . . . . Reprogrammed . | . . . . . . . . . . . . Reused 3 | . . . . . . . 2 1 . . . Traps Reconfigurated 15 | . . . . . . 5 8 2 . . . Traps Extracted . | . . . . . . . . . . . . Installed . | . . . . . . . . . . . . Triggered 3 | . . . . . . . 2 1 . . . Machines | -11 -10 -9 -9 -9 -8 -8 -7 -6 -6 -6 -5 ---------- Run | Yrd Mat Mat Min Exi Min Mat Fac Fac Low Dat Pro Machines Disabled 3 | . . 1 . . . . . 1 1 . . Max in Single Turn 1 | . . 1 . . . . . 1 1 . . Garrison Access 3 | . . . . . . 1 1 1 . . . Machines Repaired . | . . . . . . . . . . . . Machines Dismantled . | . . . . . . . . . . . . Machines Sabotaged . | . . . . . . . . . . . . Overloaded Fab Kills . | . . . . . . . . . . . . Hacking | -11 -10 -9 -9 -9 -8 -8 -7 -6 -6 -6 -5 --------- Run | Yrd Mat Mat Min Exi Min Mat Fac Fac Low Dat Pro Machines Accessed 39 | . 7 2 2 2 1 4 12 7 . 2 . Terminals 25 | . 6 1 2 . 1 3 8 4 . . . Fabricators 1 | . . . . . . . 1 . . . . Repair Stations . | . . . . . . . . . . . . Recycling Units 4 | . 1 1 . . . . 1 1 . . . Scanalyzers 2 | . . . . . . . 1 1 . . . Garrison Access 3 | . . . . . . 1 1 1 . . . Total Hacks 103 | . 23 5 3 2 1 13 25 14 . 17 . Successful 60 | . 11 3 2 2 1 8 9 7 . 17 . Failed 43 | . 12 2 1 . . 5 16 7 . . . Catastrophic 4 | . 1 . . . . 1 1 1 . . . Database Lockouts . | . . . . . . . . . . . . Manual 42 | . 8 5 . 1 . 10 12 6 . . . Terminals 69 | . 22 4 3 . 1 12 19 8 . . . Fabricators 1 | . . . . . . . 1 . . . . Repair Stations . | . . . . . . . . . . . . Recycling Units 6 | . 1 1 . . . . 2 2 . . . Scanalyzers 4 | . . . . . . . 2 2 . . . Garrison Access 4 | . . . . . . 1 1 2 . . . Terminal Hacks 32 | . 4 . 2 2 1 3 2 1 . 17 . Record 2 | . . . . 1 1 . . . . . . Part Schematic 9 | . . . . . . . . . . 9 . Robot Schematic 5 | . . . . . . . . . . 5 . Prototype ID Bank 6 | . 2 . . . . . 1 . . 3 . Open DSF 2 | . . . . . . . 1 1 . . . Alert Level 2 | . 1 . . . . 1 . . . . . Unreport Threat 2 | . . . . . . 2 . . . . . Locate Traps 1 | . 1 . . . . . . . . . . Assault Status 1 | . . . 1 . . . . . . . . Zone Layout 1 | . . . 1 . . . . . . . . Derelict Proto ID Bank 1 | . . . . 1 . . . . . . . Fabricator Hacks 1 | . . . . . . . 1 . . . . Build 1 | . . . . . . . 1 . . . . Repair Station Hacks . | . . . . . . . . . . . . Recycling Unit Hacks 1 | . . . . . . . . 1 . . . Retrieve Matter 1 | . . . . . . . . 1 . . . Scanalyzer 3 | . . . . . . . 1 2 . . . Insert Component 3 | . . . . . . . 1 2 . . . Garrison Access Hacks 1 | . . . . . . . . 1 . . . Seal Access 1 | . . . . . . . . 1 . . . Unauthorized Hacks 22 | . 7 3 . . . 5 5 2 . . . Terminals 18 | . 6 2 . . . 4 4 2 . . . Track 4 | . 2 1 . . . 1 . . . . . Assimilate 1 | . . . . . . . 1 . . . . Botnet 13 | . 4 1 . . . 3 3 2 . . . Fabricators . | . . . . . . . . . . . . Repair Stations . | . . . . . . . . . . . . Recycling Units 2 | . 1 1 . . . . . . . . . Tunnel 2 | . 1 1 . . . . . . . . . Scanalyzers . | . . . . . . . . . . . . Garrison Access 2 | . . . . . . 1 1 . . . . Jam 2 | . . . . . . 1 1 . . . . Data Cores Recovered 1 | . . . . . . . 1 . . . . Used 1 | . . . . . . . 1 . . . . Hacking Detections 26 | . 6 1 1 . . 3 9 6 . . . Full Trace Events 2 | . 1 . . . . . 1 . . . . Feedback Events . | . . . . . . . . . . . . Feedback Blocked . | . . . . . . . . . . . . Robot Schematics Acquired 5 | . . . . . . . . . . 5 . Robots Built 2 | . . . . . . . 2 . . . . Authchips . | . . . . . . . . . . . . Time 116 | . . . . . . . 116 . . . . Total Robot Build Rating 6 | . . . . . . . 6 . . . . Part Schematics Acquired 9 | . . . . . . . . . . 9 . Parts Built . | . . . . . . . . . . . . Authchips . | . . . . . . . . . . . . Time . | . . . . . . . . . . . . Total Part Build Rating . | . . . . . . . . . . . . Parts Repaired . | . . . . . . . . . . . . Time . | . . . . . . . . . . . . Parts Recycled . | . . . . . . . . . . . . Recycled Matter . | . . . . . . . . . . . . Retrieved Matter . | . . . . . . . . . . . . Retrieved Components . | . . . . . . . . . . . . Parts Scanalyzed . | . . . . . . . . . . . . Part Schematics Acquired . | . . . . . . . . . . . . Parts Damaged . | . . . . . . . . . . . . Bothacking | -11 -10 -9 -9 -9 -8 -8 -7 -6 -6 -6 -5 ------------ Run | Yrd Mat Mat Min Exi Min Mat Fac Fac Low Dat Pro Used RIF Installer . | . . . . . . . . . . . . Robots Hacked . | . . . . . . . . . . . . Non-combat . | . . . . . . . . . . . . Combat . | . . . . . . . . . . . . Robot Hacks Applied . | . . . . . . . . . . . . Relay Couplers Released . | . . . . . . . . . . . . Fabnet Peak Effective % . | . . . . . . . . . . . . Robots Rewired 2 | . . . . . . . . . 2 . . Allies Hacked . | . . . . . . . . . . . . Hacks Repelled . | . . . . . . . . . . . . Allies | -11 -10 -9 -9 -9 -8 -8 -7 -6 -6 -6 -5 -------- Run | Yrd Mat Mat Min Exi Min Mat Fac Fac Low Dat Pro Total Allies 9 | . . . 3 . . . 3 . 2 . 1 Largest Group 3 | . . . 3 3 3 2 2 2 2 . 1 Highest-Rated Group 96 | . . . 40 40 40 32 42 42 58 . 96 Highest-Rated Ally 96 | . . . 16 16 16 16 21 21 29 . 96 Total Orders 4 | . . . . . . . . 4 . . . EXPLORE 4 | . . . . . . . . 4 . . . Ally Attacks 67 | . . . 2 . 13 17 5 17 7 . 6 Total Damage 1206 | . . . 17 . 182 138 87 462 83 . 237 Kills 11 | . . . 1 . 2 2 1 2 . . 3 Allies Corrupted . | . . . . . . . . . . . . Allies Melted . | . . . . . . . . . . . . Intel | -11 -10 -9 -9 -9 -8 -8 -7 -6 -6 -6 -5 ------- Run | Yrd Mat Mat Min Exi Min Mat Fac Fac Low Dat Pro Robot Analysis Total . | . . . . . . . . . . . . Derelict Logs Recovered 5 | . . . 2 . . . . . 2 . 1 Drone Launches 4 | . . . . . . . . 4 . . . Drone Recoveries 2 | . . . . . . . . 2 . . . Exploration | -11 -10 -9 -9 -9 -8 -8 -7 -6 -6 -6 -5 ------------- Run | Yrd Mat Mat Min Exi Min Mat Fac Fac Low Dat Pro Turns Passed 8942 | 77 1049 553 1090 948 272 449 1561 1389 1092 198 264 Spaces Moved 4026 | 45 492 180 409 364 233 225 1023 552 325 77 101 Core 23 | 14 . . . . . . . . . . 9 Treads 1256 | 31 492 55 . . . . . 417 261 . . Legs 1218 | . . 125 409 364 . 87 . . 64 77 92 Wheels 1529 | . . . . . 233 138 1023 135 . . . Hover . | . . . . . . . . . . . . Flight . | . . . . . . . . . . . . Fastest Speed 50 | 50 160 160 260 260 110 115 115 160 240 260 50 Average Speed 198 | 141 187 229 260 260 110 153 140 220 269 260 240 Slowest Speed 540 | 160 240 260 260 260 110 540 160 240 400 260 260 Overloaded Moves . | . . . . . . . . . . . . Propulsion Burnouts . | . . . . . . . . . . . . Robots Hopped . | . . . . . . . . . . . . Cave-ins Triggered . | . . . . . . . . . . . . Exploration Rate (%) 42 | 4 82 21 82 72 38 25 28 22 47 69 25 Regions Visited 11 Branch Regions 6 Pre-discovered Areas 2 | . 1 1 . . . . . . . . . Known Exits Taken 1 | . . . . . . 1 . . . . . Unknown Exits Taken 10 | 1 1 1 1 1 1 . 1 1 1 1 . Scrap Searched 2 | . . . 1 . . . . . 1 . . Spaces Dug 28 | . . . . . . . . . 28 . . Terrain Destroyed 152 | . . . . . . 2 . 15 133 . 2 Melee . | . . . . . . . . . . . . Projectile 32 | . . . . . . 2 . 15 13 . 2 AOE 120 | . . . . . . . . . 120 . . Terrain Rammed . | . . . . . . . . . . . . Walls Destroyed . | . . . . . . . . . . . . Machines Disabled . | . . . . . . . . . . . . Actions | -11 -10 -9 -9 -9 -8 -8 -7 -6 -6 -6 -5 --------- Run | Yrd Mat Mat Min Exi Min Mat Fac Fac Low Dat Pro Total 4595 | 56 577 249 425 370 245 280 1124 639 444 76 110 Wait 125 | . 43 6 11 1 2 10 32 14 6 . . Move 4015 | 44 491 179 408 363 232 224 1022 551 324 76 101 Hop . | . . . . . . . . . . . . Pick Up 59 | 6 10 5 . 2 4 6 14 6 5 . 1 Fast Attach 51 | 6 4 3 . 1 . 5 17 6 8 . 1 Attach 27 | . . 5 . . 2 4 4 3 9 . . Detach 5 | . 1 2 . . . . . 1 1 . . Swap 15 | . 3 2 . . . 1 3 4 2 . . Drop 41 | . . 4 . 3 2 3 17 9 2 . 1 Fire 234 | . 25 43 6 . 3 27 14 41 69 . 6 Melee . | . . . . . . . . . . . . Ram 1 | . . . . . . . 1 . . . . Kick . | . . . . . . . . . . . . Crush 4 | . . . . . . . . 4 . . . Escape Stasis . | . . . . . . . . . . . . Rewire 18 | . . . . . . . . . 18 . . Trap . | . . . . . . . . . . . . Miscellaneous . | . . . . . . . . . . . . Route ------- -11/Scrapyard -10/Materials (discovered 4 exits: *Mat x3 / [*Min]) -9/Materials -9/Mines (discovered 3 exits: *Mat x2 / *Exi) -9/Exiles (discovered 2 exits: *Min x2) -8/Mines -8/Materials -7/Factory (discovered 2 exits: *Fac / Low) -6/Factory -6/Lower Caves (discovered 2 exits: Low / *Dat) -6/Data Miner -5/Proximity Caves (discovered 1 exit: Fac) History --------- Turn | Location | Event 12 | -11/Scrapyard | Discovered new exit (range 15) 78 | -11/Scrapyard | Entered Materials 241 | -10/Materials | Discovered new exit (range 3) 301 | -10/Materials | Build established: Mutant 369 | -10/Materials | Discovered new exit (range 11) 601 | -10/Materials | Discovered new exit (range 15) 821 | -10/Materials | Discovered new exit (range 5) 1127 | -10/Materials | Entered another Materials area 1127 | -9/Materials | Evolved 2 slots: Propulsion x1, Utility x1 1307 | -9/Materials | Lost 3 parts (1p2n) 1580 | -9/Materials | Discovered new exit (range 8) 1680 | -9/Materials | Entered Mines 1748 | -9/Mines | Discovered new exit (range 5) 2115 | -9/Mines | Assisted by bots powering up and referring to "LRC-V3" 2498 | -9/Mines | Learned location of 1 exit from Materials 2529 | -9/Mines | Discovered new exit (range 9) 2753 | -9/Mines | Deemed a non-threat by the Exiles lab entrance 2755 | -9/Mines | Discovered new exit (range 5) 2770 | -9/Mines | Entered Exiles 2770 | -9/Exiles | Accompanied by 3 allies 2809 | -9/Exiles | Discovered new exit (range 15) 2835 | -9/Exiles | Met 8R-AWN 2877 | -9/Exiles | Met EX-HEX 3034 | -9/Exiles | Met EX-DEC 3164 | -9/Exiles | Discovered new exit (range 10) 3317 | -9/Exiles | Met EX-BIN 3366 | -9/Exiles | Aligned with FarCom system 3369 | -9/Exiles | Given EX-Vault access code 3431 | -9/Exiles | Opened EX-Vault 3455 | -9/Exiles | Found Trap Reconfigurator 3514 | -9/Exiles | Warned to stay clear of 0b10 Research branches 3718 | -9/Exiles | Left Exiles lab with Trap Reconfigurator 3718 | -9/Exiles | Entered Mines 3718 | -8/Mines | Accompanied by 3 allies 3732 | -8/Mines | Discovered new exit (range 14) 3990 | -8/Mines | Entered Materials 3990 | -8/Materials | Accompanied by 2 allies 3990 | -8/Materials | Evolved 2 slots: Propulsion x1, Utility x1 3991 | -8/Materials | Identified exit to Factory 4264 | -8/Materials | Lost 6 parts (2p3n1w) 4439 | -8/Materials | Entered Factory 4439 | -7/Factory | Evolved 2 slots: Utility x2 4440 | -7/Factory | Identified exit to Lower Caves 4518 | -7/Factory | Build established: Scavenger-Mutant 5524 | -7/Factory | Fabricated H-55 Commando? 5574 | -7/Factory | Found Prototype Launcher 5968 | -7/Factory | Discovered new exit (range 14) 5997 | -7/Factory | Identified Rocket Array 6000 | -7/Factory | Entered another Factory area 6000 | -6/Factory | Accompanied by 2 allies 6000 | -6/Factory | Evolved 2 slots: Utility x2 6596 | -6/Factory | Discovered new exit (range 45) 6812 | -6/Factory | Build established: Mutant 7389 | -6/Factory | Entered Lower Caves 7497 | -6/Lower Caves | Attracted the attention of an 0b10 checkpoint 7564 | -6/Lower Caves | Identified exit to Lower Caves 7830 | -6/Lower Caves | Spotted B-75 Beast 8146 | -6/Lower Caves | Destroyed 11 combat bots 8155 | -6/Lower Caves | Lost 9 parts (1p3n5u) 8199 | -6/Lower Caves | Attracted the attention of an 0b10 outpost 8231 | -6/Lower Caves | Core integrity fell below 50% 8271 | -6/Lower Caves | Lost 3 parts (1p1u1w) 8420 | -6/Lower Caves | A Derelict revealed a hidden shortcut to meet someone special 8481 | -6/Lower Caves | Entered Data Miner 8481 | -6/Data Miner | Discovered new exit (range 6) 8531 | -6/Data Miner | Met Data Miner 8624 | -6/Data Miner | Received God Mode back door access code from Data Miner 8679 | -6/Data Miner | Entered Proximity Caves 8682 | -5/Proximity Caves | Spotter reported a threat 8682 | -5/Proximity Caves | Spotter reported a threat 8735 | -5/Proximity Caves | Spotter reported a threat 8744 | -5/Proximity Caves | Build established: Scavenger-Mutant 8772 | -5/Proximity Caves | Identified exit to Factory 8910 | -5/Proximity Caves | Spotter reported a threat 8913 | -5/Proximity Caves | Escorted by Enhanced Grunt 8936 | -5/Proximity Caves | Released all parts (6) 8938 | -5/Proximity Caves | Core integrity fell below 20% 8943 | -5/Proximity Caves | Spotter reported a threat 8943 | -5/Proximity Caves | Destroyed by H-66 Slayer with Gauss Rifle Last Messages --------------- 08934_ Slug penetrates Wall. 08934_ Carbon-fiber Leg destroyed. 08934_ Slug penetrates Wall. 08936_ Released Carbon-fiber Leg. 08936_ Released Hcp. Storage Unit. 08936_ Released Mni. Assault Cannon. 08936_ Released Hcp. Matter Pod. 08936_ Released Adv. Heat Sink. 08937_ Acquired Chainsword. 08939_ Particle Reactor fries itself beyond repair. 08939_ Slug penetrates Wall. 08939_ Penetrated by Slug. 08940_ Dropped Hcp. Storage Unit. 08940_ Slug penetrates Wall. 08940_ Acquired Rocket Array. 08941_ QUJ%7 08943_ ALERT: Unidentified potential threat approaching Complex 0b10. 08943_ Penetrated by Slug. Map ----- +----------------------------------------------------+ | ## #????## #?????# #?? ##??????????????????? | | # ###### ####### #??? ##?????????????????? | | # ###?# #?????????????????? | | # ### #?????????????????? | | ################ # #?????????????????? | | #??????????????# #?????????????????? | | #??????????????# #?????????????????? | | #??????????????# ##????????????????? | | #??????????????# ## #????????????????? | | #??????????????# #### #????????????????? | | #??????????????# ##?# #????????????????? | | +???????????# ?+ #??## ##????????????????? | | +????????????? / #???## ##?????????????????? | | #??????????????#% ##??## #??????????????????? | | #??????????????# %%### #??????????????????? | | #??????????????# % #####??????????????????? | | ???????????????# ##?????????????????????? | | ???????????????# #####?????????????????? | | ???????????????# !!*]!##????????????????? | | ????????????????# ]]=! #????????????????? | | ????????????? ## [!]!##????????????????? | | ???????????? #?##! !##?????????????????? | | ???????????? ####### #??????????????????? | | ???????????? ## ?## ## #??????????????????? | | ????????????? ??###?## #??????????????????? | | ????????????? ???????# @ h#??????????????????? | | ????????????????????# ## h ???????????? | | ?????????????????# ??# ???????? | | ????????????????# ????# ????????? | | ???????????????# ?????# ### ????????? | | ???????????????# ???????## #??? ?????????? | | ??????????????????????????## ????## ????????? | | ???????????????????????????# ??????????????? | | ???????????????????????????? #?????????????? | | ???????????????????????????? ????????????? | | ???????????????????????????? ????????????? | | ???????????????????????????? n ???????????? | | ???????????????????????????? ?????????????? | | ???????????????????????????? ???????????????? | | ????????????????????????????? ??????????????????? | | ?????????????????????????????????????????????????? | | ?????????????????????????????????????????????????? | | ?????????????????????????????????????????????????? | | ?????????????????????????????????????????????????? | | ?????????????????????????????????????????????????? | | ?????????????????????????????????????????????????? | | ?????????????????????????????????????????????????? | | ?????????????????????????????????????????????????? | | ?????????????????????????????????????????????????? | | ?????????????????????????????????????????????????? | +----------------------------------------------------+ Best States ------------- Heat Dissipation 79 Energy Generation 18 Energy Capacity 310 Matter Stores 411 Matter Capacity 500 Sight Range 16 Terrain Scan Density 10 Armor Coverage 1125 Resistance: KI 30 Utility Shielding 33 Evasion (%) 50 Targeting Accuracy 6 Recoil Reduction 3 Item Schematics ----------------- Combat Drone Bay | -6/Data Miner | Free Lgt. Regenerative Plating | -6/Data Miner | Free Enh. Armored Leg | -6/Data Miner | Free Ionic Axe | -6/Data Miner | Free Imp. Matter Compressor | -6/Data Miner | Free Hvy. Siege Treads | -6/Data Miner | Free Adv. Transmission Jammer | -6/Data Miner | Free Adv. Target Analyzer | -6/Data Miner | Free Hvy. Gauss Cannon | -6/Data Miner | Free Robot Schematics ------------------ M-22 Extractor | -6/Data Miner | Free Y-54 Guardian | -6/Data Miner | Free G-50 Soldier | -6/Data Miner | Free E-15 Imp | -6/Data Miner | Free A-27 Freighter | -6/Data Miner | Free Fabricated ------------ H-55 Commando | x2 | -7/Factory | Preloaded Alien Tech Used ----------------- None Achievements -------------- None Challenges ------------ None Game ------ Seed SurgeUltimateTendrils Manual? 0 Play Time 01:13:54 Cumulative 296.0 hours Start 2024.03.17 @ 12:25:00 End 2024.03.17 @ 13:43:25 Sessions 6 Manual Loads 0 Difficulty Rogue Special Mode None Game No. 136 Rogue 135 Adventurer 0 Explorer 1 Win Type - Total 16 Types 12/0/4/0/0/0/0/0/0 Lore% 70 Gallery% 76 Achievement% 70 Wizard Run 0 Options --------- Layout 0 ASCII 1 Keyboard 1 Movement Numpad Keybinds 1 Fullscreen 2 Font 24/Terminus Map View 129x80 Zoom Use 0% Tactical HUD 1 Map Filters NONE Filters NONE Steam 1 RUN: 2c30d883-3b68-4723-97fc-baa90b28754b